bitfinex/quotes_ETHUSD_20251111
["timestamp","ask_amount","ask_price","bid_price","bid_amount"]
[1762865689754,0.642,3560.8,3559.7,2.80916815]
[1762865689953,0.455,3560.7,3559.8,1.933712]
[1762865690254,0.455,3560.7,3559.8,1.04097306]
[1762865690488,0.455,3560.7,3559.8,3.48312117]
[1762865690802,0.642,3560.8,3559.8,1.933712]
[1762865690951,0.642,3560.8,3560.0,4.06870076]
[1762865691154,0.642,3560.8,3560.0,2.80893839]
[1762865691353,0.642,3560.8,3560.1,1.259712]
[1762865691552,0.642,3560.8,3560.2,0.674]
[1762865691903,0.642,3560.8,3560.3,1.259712]
[1762865692184,0.642,3560.8,3560.2,0.674]
[1762865692375,0.642,3560.8,3560.2,2.75347197]
[1762865692886,0.187,3560.8,3560.2,2.75347197]
[1762865693232,0.187,3560.8,3560.3,1.259712]
[1762865693361,0.187,3560.8,3560.3,1.933712]
[1762865693556,0.642,3560.8,3560.3,1.933712]
[1762865693755,0.642,3560.8,3560.4,0.55622772]
[1762865694386,0.455,3560.7,3560.3,0.674]
[1762865695990,0.455,3560.7,3560.4,0.674]
[1762865696175,0.455,3560.7,3559.9,0.64596084]
[1762865696376,0.455,3560.7,3560.0,0.674]
[1762865696579,0.455,3560.7,3560.1,1.259712]
[1762865696759,0.455,3560.7,3560.3,1.259712]
[1762865697098,0.471,3560.1,3559.5,0.001]
[1762865697292,0.4762,3560.0,3559.5,0.001]
[1762865697599,0.4762,3560.0,3559.5,0.675]
[1762865697752,0.471,3559.6,3559.5,0.675]
[1762865698351,0.4762,3559.8,3559.5,0.675]
[1762865698590,0.1928,3559.9,3559.5,0.8684712]
[1762865698790,0.187,3560.8,3559.5,0.675]
[1762865698996,0.4762,3560.5,3559.5,0.675]
[1762865699293,0.4762,3560.5,3559.5,1.934712]
[1762865699696,0.4762,3560.5,3559.5,3.48434931]
[1762865699857,0.4762,3560.5,3559.5,0.675]
[1762865700710,0.187,3560.8,3559.7,1.259712]
[1762865700938,0.6632,3560.8,3559.7,1.65154612]
[1762865701236,0.187,3560.8,3560.0,2.80896121]
[1762865701444,0.187,3560.8,3560.1,4.04471221]
[1762865701598,0.187,3560.8,3560.1,1.23580464]
[1762865702000,0.187,3560.8,3560.1,1.08544112]
[1762865702324,0.187,3560.8,3560.2,0.674]
[1762865703411,0.471,3560.3,3559.6,1.259712]
[1762865703619,0.471,3560.2,3559.7,3.01916105]
[1762865703824,0.4762,3560.7,3559.7,3.01916105]
[1762865704019,0.4762,3560.7,3559.7,1.08544905]
[1762865704226,0.4762,3560.7,3559.8,0.674]
[1762865704421,0.4762,3560.7,3559.7,1.08544905]
[1762865704630,0.4762,3560.7,3559.8,0.674]
[1762865704832,0.4762,3560.7,3559.8,0.95605819]
[1762865705018,0.6632,3560.8,3559.8,5.02486697]
[1762865705403,0.187,3560.8,3559.8,5.02486697]
[1762865705704,0.4762,3560.7,3559.9,1.259712]
[1762865705905,0.4762,3560.7,3560.0,0.73700268]
[1762865707117,0.4762,3560.7,3559.8,0.95605819]
[1762865707118,0.471,3560.1,3559.5,0.001]
[1762865707316,0.471,3559.9,3559.6,0.674]
[1762865707641,0.4762,3560.6,3559.6,1.933712]
[1762865708007,0.4762,3560.6,3559.6,3.4832918]
[1762865708207,0.002,3560.7,3560.1,1.259712]
[1762865708417,0.002,3560.7,3560.5,1.259712]
[1762865708756,0.002,3560.7,3559.6,6.31]
[1762865708757,0.4782,3560.7,3559.9,1.259712]
[1762865709060,0.4782,3560.7,3560.0,0.674]
[1762865709411,0.471,3560.1,3559.5,0.001]
[1762865709816,0.471,3560.1,3559.6,0.674]
[1762865710268,0.9472,3560.1,3559.5,0.001]
[1762865710572,0.9472,3560.1,3559.6,0.674]
[1762865710748,0.6638,3559.6,3559.5,0.001]
[1762865711256,1.14,3559.6,3559.5,0.001]
[1762865712252,0.6638,3559.6,3559.5,0.001]
[1762865712459,0.1928,3559.9,3559.5,0.001]
[1762865712824,0.4762,3559.8,3559.5,0.001]
[1762865713025,0.471,3559.6,3559.5,0.001]
[1762865713226,0.471,3559.6,3559.5,0.675]
[1762865713431,0.471,3559.6,3559.5,0.001]
[1762865713432,0.9472,3559.6,3559.5,0.001]
[1762865714058,0.4702,3559.6,3559.5,0.001]
[1762865714460,0.4702,3559.6,3559.5,0.675]
[1762865715266,0.4762,3560.2,3559.5,0.675]
[1762865717080,0.6638,3559.6,3559.5,0.001]
[1762865717359,0.6638,3559.6,3559.5,0.675]
[1762865717585,1.14,3559.6,3559.5,0.675]
[1762865718487,1.14,3559.6,3559.5,0.001]
[1762865719288,0.4762,3560.1,3559.5,0.001]
[1762865719696,0.4762,3560.6,3559.5,0.1944712]
[1762865719897,0.4762,3560.6,3559.6,0.39183412]
[1762865720100,0.4762,3560.6,3559.6,1.259712]
[1762865720399,0.4762,3560.6,3559.6,2.80924662]
[1762865720602,0.002,3560.7,3559.7,0.70728899]
[1762865720898,0.4782,3560.7,3559.8,0.674]
[1762865721290,0.4782,3560.7,3559.5,0.1944712]
[1762865721460,0.4782,3560.7,3559.9,1.04018862]
[1762865721659,0.4782,3560.7,3559.9,0.674]
[1762865721886,0.4782,3560.7,3559.9,1.14828796]
[1762865722086,0.4782,3560.7,3559.9,0.674]
[1762865723213,0.4782,3560.7,3560.0,0.674]
[1762865723413,0.4782,3560.7,3560.1,0.674]
[1762865723570,0.4782,3560.7,3560.2,0.673]
[1762865724091,0.471,3560.3,3559.5,0.1944712]
[1762865724290,0.471,3560.3,3559.6,0.14541832]
[1762865724503,0.4762,3560.2,3559.7,0.673]
[1762865725421,0.6638,3559.8,3559.5,0.001]
[1762865725621,0.4824,3559.6,3559.5,0.001]
[1762865726210,0.9573,3559.6,3559.5,0.001]
[1762865726415,0.1928,3559.8,3559.5,0.001]
[1762865726568,0.002,3560.7,3559.5,0.001]
[1762865726774,0.6819,3559.6,3559.5,0.001]
[1762865727183,1.1568,3559.6,3559.5,0.001]
[1762865727408,0.6819,3559.6,3559.5,0.001]
[1762865727734,0.1995,3560.0,3559.5,0.001]
[1762865727879,0.4749,3560.6,3559.5,0.47533072]
[1762865728074,0.4749,3560.6,3559.5,1.73504272]
[1762865728426,0.4749,3560.6,3559.6,0.673]
[1762865728939,0.4749,3560.6,3559.5,1.73504272]
[1762865729077,0.4749,3560.6,3559.6,0.673]
[1762865729889,0.4749,3560.6,3559.7,0.673]
[1762865730202,0.4749,3560.6,3559.8,0.673]
[1762865730421,0.002,3560.7,3560.3,4.52589639]
[1762865730577,0.002,3560.7,3560.4,1.12558964]
[1762865730774,0.4824,3560.5,3559.7,2.80922549]
[1762865730984,0.4824,3560.4,3559.8,3.48209876]
[1762865731520,0.002,3560.7,3560.1,2.80888771]
[1762865731833,0.002,3560.7,3559.8,0.673]
[1762865732034,0.4769,3560.7,3559.8,0.673]
[1762865732238,0.4769,3560.7,3559.9,0.1932712]
[1762865732436,0.4769,3560.7,3559.9,0.673]
[1762865732720,0.4769,3560.7,3560.0,0.673]
[1762865733190,0.002,3560.7,3560.0,0.673]
[1762865733725,0.002,3560.7,3560.1,2.80890986]
[1762865733911,0.002,3560.7,3560.2,2.80876613]
[1762865734114,0.002,3560.7,3560.3,0.6290676]
[1762865734989,0.002,3560.7,3560.3,2.80874833]
[1762865735192,0.002,3560.7,3560.4,2.80860755]
[1762865735444,0.002,3560.7,3560.5,0.673]
[1762865736031,0.4824,3560.6,3559.6,6.65929898]
[1762865736186,0.4824,3560.4,3559.7,0.673]
[1762865737120,0.4824,3560.4,3559.8,1.259712]
[1762865737485,0.4824,3560.4,3559.7,0.75524645]
[1762865737699,0.9573,3560.4,3559.8,0.673]
[1762865738229,0.4749,3560.3,3559.5,0.001]
[1762865738460,0.0012,3560.7,3559.9,0.673]
[1762865738845,0.0012,3560.7,3560.0,0.02808988]
[1762865739170,0.0012,3560.7,3559.9,0.673]
[1762865739362,0.4761,3560.7,3560.0,1.14718528]
[1762865739562,0.4761,3560.7,3560.0,0.673]
[1762865740270,0.4761,3560.7,3559.7,1.259712]
[1762865740429,0.4761,3560.7,3560.1,0.673]
[1762865740629,0.4761,3560.7,3559.5,0.001]
[1762865740843,0.4761,3560.7,3559.8,1.259712]
[1762865741338,0.4761,3560.7,3559.7,2.80921262]
[1762865741541,0.4761,3560.7,3559.7,2.01494945]
[1762865741734,0.4761,3560.7,3559.7,4.82411443]
[1762865742071,0.0012,3560.7,3559.9,2.80903402]
[1762865742293,0.0012,3560.7,3559.9,2.80906767]
[1762865742584,0.4761,3560.7,3560.0,0.38420657]
[1762865742794,0.4761,3560.7,3560.1,0.38662466]
[1762865742976,0.4761,3560.7,3560.2,0.673]
[1762865743794,0.4824,3560.3,3559.8,1.259712]
[1762865744088,0.4824,3560.2,3559.9,0.673]
[1762865744289,0.4824,3560.2,3560.0,1.10518522]
[1762865744585,0.9573,3560.2,3559.8,1.259712]
[1762865744755,0.9573,3560.2,3559.9,0.673]
[1762865744951,0.4824,3560.2,3559.9,0.673]
[1762865745175,0.4749,3560.6,3559.9,0.673]
[1762865745931,0.4749,3560.6,3559.6,0.001]
[1762865745932,0.4824,3560.0,3559.6,0.001]
[1762865746096,0.6819,3559.7,3559.6,0.001]
[1762865746454,1.1568,3559.7,3559.6,0.001]
[1762865747290,0.6819,3559.7,3559.6,0.001]
[1762865747596,1.1568,3559.7,3559.6,0.001]
[1762865747767,0.1995,3560.0,3559.6,0.001]
[1762865748157,0.6744,3560.0,3559.6,0.001]
[1762865748591,0.4749,3559.9,3559.6,0.001]
[1762865749189,0.4824,3559.7,3559.6,0.001]
[1762865749607,0.9573,3559.7,3559.6,0.001]
[1762865750524,0.1995,3560.0,3559.6,0.001]
[1762865750707,0.4749,3559.9,3559.6,0.001]
[1762865751689,0.4824,3559.7,3559.6,0.001]
[1762865752089,0.9573,3559.7,3559.6,0.001]
[1762865753791,0.1995,3560.0,3559.6,0.001]
[1762865753996,0.4824,3559.7,3559.6,0.001]
[1762865754503,0.9573,3559.7,3559.6,0.001]
[1762865754700,0.4824,3559.7,3559.6,0.001]
[1762865755721,0.0012,3560.7,3559.6,0.001]
[1762865755722,0.4836,3560.3,3559.6,0.001]
[1762865756109,0.0012,3560.7,3559.6,0.001]
[1762865756411,0.6911,3559.7,3559.6,0.001]
[1762865756932,1.1747,3559.7,3559.6,0.001]
[1762865757825,1.260912,3560.7,3559.6,0.001]
[1762865757826,0.186,3559.9,3559.6,0.001]
[1762865758223,0.6437,3559.9,3559.6,0.001]
[1762865758731,0.4742,3559.7,3559.6,0.001]
[1762865759296,0.186,3559.9,3559.6,0.001]
[1762865759498,0.6437,3559.9,3559.6,0.001]
[1762865759932,0.4577,3560.4,3559.6,0.001]
[1762865760234,0.4569,3560.4,3559.6,0.001]
[1762865761833,0.0012,3560.7,3559.6,0.001]
[1762865762038,0.26254566,3560.6,3559.6,0.001]
[1762865762236,0.26254566,3560.5,3559.6,0.001]
[1762865762550,0.26256367,3560.4,3559.6,0.001]
[1762865762747,0.4577,3560.3,3559.6,0.001]
[1762865765207,0.6602,3559.7,3559.6,0.001]
[1762865765719,0.4742,3559.7,3559.6,0.001]
[1762865765923,0.186,3559.9,3559.6,0.001]
[1762865766448,0.4577,3560.0,3559.6,0.001]
[1762865766652,0.4577,3560.6,3559.6,0.001]
[1762865767530,0.4577,3560.6,3559.7,0.40711619]
[1762865767731,0.4577,3560.6,3559.8,0.673]
[1762865767937,0.4577,3560.5,3559.8,0.673]
[1762865768132,0.0012,3560.7,3559.8,0.673]
[1762865768326,0.72041891,3560.6,3559.8,0.673]
[1762865768528,0.4577,3560.6,3559.8,0.673]
[1762865768726,0.4577,3560.5,3559.8,0.673]
[1762865769347,0.0012,3560.7,3559.8,0.673]
[1762865769722,0.4589,3560.7,3559.8,0.673]
[1762865769925,0.4589,3560.7,3559.9,0.47429453]
[1762865770125,0.6602,3559.9,3559.6,0.001]
[1762865770349,0.4742,3559.7,3559.6,0.001]
[1762865771314,0.9319,3559.7,3559.6,0.001]
[1762865772148,0.186,3559.9,3559.6,0.001]
[1762865772848,0.6437,3559.9,3559.6,0.001]
[1762865773037,0.4742,3559.7,3559.6,0.001]
[1762865774025,0.9319,3559.7,3559.6,0.001]
[1762865775614,2.80869138,3560.4,3559.6,0.001]
[1762865775815,0.4742,3559.7,3559.6,0.001]
[1762865776257,0.9319,3559.7,3559.6,0.001]
[1762865777471,1.259712,3559.6,3559.5,0.001]
[1762865777619,1.19507569,3559.6,3559.1,0.011]
[1762865777821,3.2837412,3559.3,3559.1,0.011]
[1762865778017,4.47483613,3559.2,3559.1,0.011]
[1762865778249,2.80985697,3558.9,3558.8,0.001]
[1762865778465,4.86393266,3558.9,3558.8,0.001]
[1762865779791,2.05407569,3558.9,3558.8,0.001]
[1762865780055,5.19531143,3558.9,3558.8,0.001]
[1762865780255,6.45502343,3558.9,3558.8,0.001]
[1762865781056,6.86052743,3558.9,3558.8,0.001]
[1762865784323,6.85972743,3558.9,3558.8,0.001]
[1762865784565,5.19451143,3558.9,3558.8,0.001]
[1762865785469,6.45422343,3558.9,3558.8,0.001]
[1762865786167,6.19104774,3558.9,3558.8,0.001]
[1762865786372,3.38119077,3558.9,3558.8,0.001]
[1762865786672,6.45281524,3558.9,3558.8,0.001]
[1762865787169,6.85831924,3558.9,3558.8,0.001]
[1762865788938,2.81040975,3558.2,3558.1,0.011]
[1762865789182,5.87439325,3558.2,3558.1,0.011]
[1762865789466,6.33339325,3558.2,3558.1,0.011]
[1762865789836,2.4454795,3558.2,3558.1,0.011]
[1762865790066,3.1174795,3558.2,3558.1,0.011]
[1762865790271,6.2396372,3558.2,3558.1,0.011]
[1762865791660,6.6451412,3558.2,3558.1,0.011]
[1762865792942,3.83473145,3558.2,3558.1,0.011]
[1762865793162,6.6451412,3558.2,3558.1,0.011]
[1762865793847,0.7267675,3558.2,3558.1,0.011]
[1762865794147,5.92836802,3558.2,3558.1,0.011]
[1762865796383,6.33387202,3558.2,3558.1,0.011]
[1762865797480,0.72624627,3558.2,3558.1,0.011]
[1762865797717,0.188,3558.9,3558.1,0.011]
[1762865798416,0.672,3558.8,3558.1,0.011]
[1762865799444,0.465,3558.2,3558.1,0.011]
[1762865799645,3.99586981,3558.2,3558.1,0.011]
[1762865799805,5.25558181,3558.2,3558.1,0.011]
[1762865800005,2.44517206,3558.2,3558.1,0.011]
[1762865800206,0.26146006,3558.2,3558.1,0.011]
[1762865802250,0.405504,3559.1,3558.1,0.011]
[1762865802251,2.80982817,3559.0,3558.1,0.011]
[1762865802407,4.08413303,3558.8,3558.1,0.011]
[1762865802747,0.2618499,3558.7,3558.1,0.011]
[1762865802931,0.672,3558.8,3558.1,0.011]
[1762865803132,0.26181914,3558.7,3558.1,0.011]
[1762865803314,0.465,3558.2,3558.1,0.011]
[1762865803513,0.72683051,3558.2,3558.1,0.011]
[1762865803831,1.18583051,3558.2,3558.1,0.011]
[1762865804929,0.26183051,3558.2,3558.1,0.011]
[1762865805127,0.72683051,3558.2,3558.1,0.011]
[1762865805540,0.26183051,3558.2,3558.1,0.011]
[1762865805842,2.99181447,3558.2,3558.1,0.011]
[1762865806008,2.44554251,3558.2,3558.1,0.011]
[1762865806203,1.98654251,3558.2,3558.1,0.011]
[1762865807226,0.26183051,3558.2,3558.1,0.011]
[1762865808242,5.25515226,3558.2,3558.1,0.011]
[1762865810050,0.26103051,3558.2,3558.1,0.011]
[1762865810552,3.53644026,3558.2,3558.1,0.011]
[1762865810722,6.12888583,3558.2,3558.1,0.011]
[1762865810922,5.25515226,3558.2,3558.1,0.011]
[1762865811950,1.98574251,3558.2,3558.1,0.011]
[1762865812112,4.79615226,3558.2,3558.1,0.011]
[1762865812449,1.98574251,3558.2,3558.1,0.011]
[1762865812654,0.26103051,3558.2,3558.1,0.011]
[1762865812811,0.93303051,3558.2,3558.1,0.011]
[1762865813248,0.26103051,3558.2,3558.1,0.011]
[1762865814999,0.672,3558.8,3558.1,0.011]
[1762865815354,0.002,3558.2,3558.1,0.011]
[1762865819290,0.9756,3558.2,3558.1,0.011]
[1762865819784,0.4807,3558.2,3558.1,0.011]
[1762865820290,0.74353686,3558.2,3558.1,0.011]
[1762865821205,2.00324886,3558.2,3558.1,0.011]
[1762865821558,1.55545175,3558.2,3558.1,0.011]
[1762865821754,5.6255735,3558.2,3558.1,0.011]
[1762865822067,6.0310775,3558.2,3558.1,0.011]
[1762865822396,3.21607173,3558.0,3557.7,0.001]
[1762865822570,3.95760859,3558.0,3557.7,0.001]
[1762865822770,5.40387311,3558.0,3557.7,0.001]
[1762865824058,2.59330538,3558.0,3557.7,0.001]
[1762865824392,0.002,3558.2,3557.7,0.001]
[1762865824558,0.4787,3558.0,3557.7,0.001]
[1762865824763,0.4969,3558.2,3557.7,0.001]
[1762865824980,0.4787,3558.0,3557.7,0.001]
[1762865825184,0.74155517,3558.0,3557.7,0.001]
[1762865825560,0.74158692,3558.0,3557.7,0.001]
[1762865825760,0.26288692,3558.0,3557.7,0.001]
[1762865827290,0.002,3558.2,3557.7,0.001]
[1762865827485,0.26294068,3558.1,3557.7,0.001]
[1762865827693,0.74164068,3558.0,3557.7,0.001]
[1762865828209,1.23654068,3558.0,3557.7,0.001]
[1762865828501,0.26294068,3558.0,3557.7,0.001]
[1762865829080,0.63768525,3558.0,3557.7,0.001]
[1762865829279,0.26294068,3558.0,3557.7,0.001]
[1762865829712,0.002,3558.2,3557.7,0.001]
[1762865829926,0.26302073,3558.1,3557.7,0.001]
[1762865830077,0.002,3558.2,3557.7,0.001]
[1762865832292,0.0012,3558.2,3557.7,0.001]
[1762865837013,0.0012,3558.2,3558.0,4.53350793]
[1762865837212,0.0012,3558.2,3558.1,0.45345079]
[1762865837800,0.0012,3558.2,3558.1,3.29204441]
[1762865838041,0.0012,3558.2,3558.1,0.45345079]
[1762865838418,0.0012,3558.2,3558.1,0.8004157]
[1762865839742,0.0012,3558.2,3558.1,0.45345079]
[1762865840629,0.0012,3558.2,3558.1,1.12445079]
[1762865842111,0.0012,3558.2,3558.1,0.671]
[1762865842711,0.0012,3558.2,3558.1,1.05313157]
[1762865842912,0.0012,3558.2,3558.1,0.671]
[1762865843543,0.0012,3558.2,3557.9,0.001]
[1762865843757,0.0012,3558.2,3558.1,0.671]
[1762865844265,0.0012,3558.2,3558.1,1.019269]
[1762865844635,0.0012,3558.2,3558.1,0.348269]
[1762865844823,0.0012,3558.2,3558.1,0.671]
[1762865845226,0.9748,3558.2,3557.9,0.001]
[1762865845432,0.4787,3558.0,3557.9,0.001]
[1762865845626,0.946,3558.0,3557.9,0.001]
[1762865846165,4.01927232,3558.0,3557.9,0.001]
[1762865846473,4.70236738,3558.0,3557.9,0.001]
[1762865846763,5.37336738,3558.0,3557.9,0.001]
[1762865846937,6.63307938,3558.0,3557.9,0.001]
[1762865847140,7.03858338,3558.0,3557.9,0.001]
[1762865850056,3.15151165,3558.0,3557.9,0.001]
[1762865850255,5.27898432,3558.0,3557.9,0.001]
[1762865850969,2.46841659,3558.0,3557.9,0.001]
[1762865851286,5.27898432,3558.0,3557.9,0.001]
[1762865851493,2.46841659,3558.0,3557.9,0.001]
[1762865851696,5.27898432,3558.0,3557.9,0.001]
[1762865851997,4.35168616,3558.0,3557.9,0.001]
[1762865853793,1.07381843,3558.0,3557.9,0.001]
[1762865853994,0.0012,3558.2,3557.9,0.001]
[1762865856177,0.0004,3558.2,3557.9,0.001]
[1762865858598,0.4677,3558.2,3557.9,0.001]
[1762865858901,0.0004,3558.2,3557.9,0.001]
[1762865859279,0.4677,3558.2,3557.9,0.001]
[1762865861000,0.4927,3558.0,3557.9,0.001]
[1762865861503,3.77056773,3558.0,3557.9,0.001]
[1762865861685,6.62194115,3558.0,3557.9,0.001]
[1762865863066,6.62194115,3558.0,3557.1,0.011]
[1762865863067,6.62194115,3558.0,3555.2,2.01806913]
[1762865863417,2.81388935,3553.8,3553.0,2.02800463]
[1762865863566,2.959,3552.9,3552.0,2.01835292]
[1762865863777,0.4524,3552.2,3552.0,2.01835292]
[1762865864014,1.712112,3552.2,3551.1,0.0625]
[1762865864195,1.259712,3552.1,3551.2,0.4705]
[1762865864396,0.98052977,3551.5,3551.2,0.4705]
[1762865864601,1.58998353,3551.5,3551.1,0.0625]
[1762865864763,1.59000257,3551.5,3551.1,0.0625]
[1762865865085,10.46369536,3551.5,3551.1,0.0625]
[1762865865286,2.81661937,3551.5,3551.1,0.01]
[1762865865603,4.16152635,3551.5,3551.1,0.01]
[1762865865806,13.03674135,3551.5,3551.1,0.01]
[1762865865964,4.7047802,3551.5,3551.1,0.01]
[1762865866334,10.39175584,3551.5,3551.1,0.01]
[1762865866630,0.2615,3551.2,3551.1,0.01]
[1762865866918,9.98982968,3551.2,3551.1,0.01]
[1762865867286,15.73883918,3551.2,3551.1,0.01]
[1762865867492,13.77603552,3551.2,3551.1,0.01]
[1762865867691,9.98982968,3551.2,3551.1,0.01]
[1762865868004,9.72832968,3551.2,3551.1,0.01]
[1762865868789,10.22102968,3551.2,3551.1,0.01]
[1762865868970,10.68832968,3551.2,3551.1,0.01]
[1762865870218,10.68832968,3551.2,3550.2,1.1795]
[1762865870542,2.41626441,3550.6,3550.2,1.1795]
[1762865870836,9.72832968,3550.5,3550.2,1.1795]
[1762865871035,9.72832968,3550.4,3550.3,0.3925]
[1762865871238,9.46699739,3550.4,3550.3,0.3925]
[1762865871406,11.8832618,3550.4,3550.3,0.785]
[1762865872138,11.8832618,3550.4,3550.3,1.1005]
[1762865872437,9.72417166,3550.4,3550.3,1.1005]
[1762865873138,9.72417166,3550.4,3550.3,0.3925]
[1762865873344,9.72417166,3550.4,3550.3,0.32843728]
[1762865873543,11.04179522,3550.4,3550.1,0.01]
[1762865873874,9.72417166,3550.3,3550.2,0.1059]
[1762865874047,9.72417166,3550.3,3550.1,0.01]
[1762865874209,12.84019329,3550.2,3549.9,0.707]
[1762865874541,1.9262796,3550.0,3549.9,0.707]
[1762865874741,11.39327699,3550.0,3549.9,0.707]
[1762865875046,9.46699739,3550.0,3549.9,1.152]
[1762865875247,2.03623886,3550.0,3549.9,3.96898076]
[1762865875415,1.55481423,3550.0,3549.9,1.54889808]
[1762865875619,2.04751423,3550.0,3549.1,1.269712]
[1762865875817,2.04751423,3550.0,3543.7,0.08711738]
[1762865875818,0.191,3547.1,3546.1,0.01]
[1762865876022,4.43813001,3546.7,3546.1,0.01]
[1762865876332,0.95874442,3546.3,3546.1,0.1938]
[1762865876525,9.45241709,3546.2,3546.1,1.1319]
[1762865876723,9.45241709,3546.2,3546.1,1.4369]
[1762865877034,9.45241709,3546.2,3546.1,0.8938]
[1762865877227,8.875215,3546.2,3546.1,1.6468]
[1762865877431,8.875215,3546.5,3546.1,1.6468]
[1762865877631,0.57398443,3546.4,3546.1,0.8938]
[1762865877833,9.44919943,3546.3,3546.2,0.753]
[1762865878234,8.875215,3546.3,3546.2,0.65378]
[1762865878443,8.875215,3547.1,3546.2,1.2421]
[1762865878640,0.719064,3547.3,3546.3,1.453]
[1762865878641,0.57302651,3547.0,3546.3,1.453]
[1762865878843,0.57302651,3546.9,3546.3,0.7]
[1762865879082,2.843585,3547.1,3546.4,0.753]
[1762865879380,8.875215,3547.1,3546.4,0.753]
[1762865879581,8.875215,3547.3,3546.4,0.753]
[1762865879878,8.875215,3547.3,3546.5,1.1891]
[1762865880027,2.41592626,3547.2,3546.5,1.1891]
[1762865880380,0.57154126,3547.1,3546.6,0.4891]
[1762865880528,8.875215,3547.0,3546.6,0.4891]
[1762865880728,7.027629,3547.5,3546.6,0.4891]
[1762865880953,6.308565,3547.5,3547.4,0.6341]
[1762865881152,6.308565,3547.5,3547.4,1.3861]
[1762865881384,8.875215,3547.6,3547.4,1.8752]
[1762865881551,8.875215,3548.4,3547.5,1.1891]
[1762865881764,9.95988036,3548.4,3547.6,0.4891]
[1762865881937,8.875215,3548.3,3547.7,0.751]
[1762865882352,8.875215,3548.3,3548.2,0.1838]
[1762865882681,8.875215,3548.6,3548.2,0.7838]
[1762865882826,7.847237,3548.6,3548.3,0.4891]
[1762865883025,7.847237,3548.6,3548.4,0.751]
[1762865883327,7.847237,3548.6,3548.5,0.751]
[1762865883544,8.875215,3548.7,3548.5,0.751]
[1762865883726,8.875215,3548.8,3548.5,0.751]
[1762865883926,8.875215,3548.8,3548.6,0.75]
[1762865884166,8.875215,3548.8,3548.2,1.0891]
[1762865884395,8.875215,3548.8,3544.1,0.01]
[1762865884396,2.82079828,3545.1,3544.1,0.01]
[1762865884543,0.719064,3544.3,3544.1,0.5198]
[1762865884742,1.67780842,3545.3,3544.2,30.5]
[1762865884972,0.405504,3545.7,3545.1,0.1838]
[1762865885158,0.405504,3545.7,3545.2,0.777]
[1762865885333,0.84745882,3545.6,3545.1,0.6729]
[1762865885531,0.95874442,3546.6,3545.2,0.778]
[1762865885532,0.719064,3546.6,3545.2,0.778]
[1762865885735,0.719064,3546.6,3545.8,0.5]
[1762865885973,0.405504,3546.3,3545.9,0.778]
[1762865886329,0.405504,3546.3,3545.8,0.5]
[1762865886330,0.405504,3545.9,3545.8,0.5]
[1762865886731,0.719064,3546.1,3545.8,0.5]
[1762865886937,0.719064,3546.2,3545.8,0.5]
[1762865887171,3.539,3546.2,3545.8,0.5]
[1762865887374,0.719064,3546.1,3545.8,0.5]
[1762865887537,1.124568,3546.0,3545.8,0.5]
[1762865887868,0.405504,3545.8,3545.4,0.777]
[1762865888260,0.405504,3545.6,3545.2,0.777]
[1762865888568,0.405504,3545.7,3545.5,0.5]
[1762865889128,0.719064,3545.8,3545.5,0.5]
[1762865889371,0.719064,3545.7,3545.5,0.5]
[1762865889557,0.719064,3545.8,3545.6,0.776]
[1762865890283,1.43784625,3546.0,3545.7,0.775]
[1762865890581,0.96071011,3545.8,3545.5,0.5]
[1762865890741,0.96071011,3545.8,3545.6,0.774]
[1762865890944,0.96071011,3545.8,3545.5,0.5]
[1762865891353,1.43784625,3545.8,3545.6,0.774]
[1762865891580,1.43784625,3545.8,3545.7,0.774]
[1762865892359,0.57839007,3545.8,3545.5,0.5]
[1762865892568,0.96677589,3545.6,3545.5,0.5]
[1762865892771,1.54516596,3545.6,3545.5,1.273]
[1762865892967,1.54516596,3545.6,3545.4,0.1838]
[1762865892968,0.57839007,3545.6,3545.4,0.1838]
[1762865893181,0.60744477,3545.5,3545.4,0.1838]
[1762865893368,0.60744477,3545.5,3545.4,1.9459]
[1762865895186,0.60744477,3545.5,3545.4,4.76645621]
[1762865895388,0.61223078,3545.5,3545.4,5.65114388]
[1762865895589,0.0290547,3545.5,3545.4,6.91085588]
[1762865897094,0.72799717,3546.7,3545.5,1.259712]
[1762865897260,0.01,3546.9,3546.6,0.1838]
[1762865897462,0.58436176,3546.8,3546.7,0.77]
[1762865897696,0.58436176,3546.8,3546.7,1.27]
[1762865898001,0.58436176,3546.8,3546.7,1.41538]
[1762865898171,0.58436176,3546.8,3546.7,1.58478]
[1762865898361,0.58436176,3546.8,3546.7,2.35478]
[1762865898559,0.01,3546.9,3546.7,2.35478]
[1762865898778,0.01,3546.9,3546.8,0.9394]
[1762865899184,0.01,3546.9,3546.8,1.193258]
[1762865899383,0.59584485,3546.9,3546.8,1.193258]
[1762865899585,0.01,3546.9,3546.8,1.193258]
[1762865899901,0.01,3546.9,3546.8,1.693258]
[1762865900100,0.01,3546.9,3546.8,2.461258]
[1762865900327,0.01,3546.9,3546.8,5.28070087]
[1762865900492,0.01,3546.9,3546.8,6.54041287]
[1762865901210,0.01,3546.9,3546.8,2.95297]